[Event "58th Akiba Rubinstein D 2022"]
[Site "Polanica-Zdroj"]
[Date "2022.08.18"]
[Round "6.25"]
[White "Para, Tomasz"]
[Black "Perucki, Maciej"]
[Result "1/2-1/2"]
[ECO "D00"]
[WhiteElo "1796"]
[BlackElo "1449"]
[Annotator "NA RC"]
[PlyCount "47"]
[EventDate "2022.08.13"]
[EventCountry "POL"]
[SourceTitle "playchess.com"]
[Source "ChessBase"]
[SourceQuality "1"]
[TimeControl "40/5400+30:1800+30"]

1. d4 {[%emt 0:00:02]} d5 {[%emt 0:00:02]} 2. Bf4 {[%emt 0:00:06]} Nf6 {[%emt 0:00:04]} 3. e3 {[%emt 0:00:05]} c5 {[%emt 0:00:03]} 4. c3 {[%emt 0:01:24]} Nc6 {[%emt 0:00:07]} 5. Nd2 {[%emt 0:01:16]} Bf5 {[%emt 0:03:55]} 6. Ngf3 {[%emt 0:01:49]} cxd4 {[%emt 0:00:10]} 7. exd4 {[%emt 0:01:55]} Qb6 {[%emt 0:01:12]} 8. Qb3 {[%emt 0:01:34]} e6 {[%emt 0:04:06]} 9. Qxb6 {[%emt 0:12:11]} axb6 10. Bb5 {[%emt 0:02:14]} Be7 {[%emt 0:02:52]} 11. O-O {[%emt 0:04:01]} O-O {[%emt 0:00:23]} 12. Rfe1 {[%emt 0:10:04]} h6 {[%emt 0:03:21]} 13. h3 {[%emt 0:02:43]} Rfc8 {[%emt 0:03:30]} 14. Ne5 {[%emt 0:12:37]} g5 {[%emt 0:04:13]} 15. Bh2 {[%emt 0:02:46]} Nxe5 {[%emt 0:00:24]} 16. Bxe5 {[%emt 0:03:51]} Ne8 {[%emt 0:04:37]} 17. Nf3 {[%emt 0:05:35]} Nd6 18. Bxd6 {[%emt 0:07:24]} Bxd6 {[%emt 0:01:27]} 19. a3 {[%emt 0:00:07]} Ra5 {[%emt 0:00:58]} 20. Bf1 {[%emt 0:02:47]} b5 {[%emt 0:02:07]} 21. Rad1 {[%emt 0:05:07]} Kg7 {[%emt 0:06:09]} 22. Bd3 {[%emt 0:00:23]} Bxd3 {[%emt 0:00:04]} 23. Rxd3 {[%emt 0:00:02]} b6 {[%emt 0:00:43]} 24. Rde3 {[%emt 0:00:57]} 1/2-1/2

[Event "58th Akiba Rubinstein D 2022"]
[Site "Polanica-Zdroj"]
[Date "2022.08.18"]
[Round "6.26"]
[White "Bartosik, Dawid"]
[Black "Ursnik, Patryk"]
[Result "0-1"]
[ECO "B34"]
[WhiteElo "1443"]
[BlackElo "1671"]
[Annotator "NA RC"]
[PlyCount "88"]
[EventDate "2022.08.13"]
[EventCountry "POL"]
[SourceTitle "playchess.com"]
[Source "ChessBase"]
[SourceQuality "1"]
[TimeControl "40/5400+30:1800+30"]

1. e4 {[%emt 0:00:04]} c5 {[%emt 0:00:05]} 2. Nf3 {[%emt 0:00:05]} Nc6 {[%emt 0:00:03]} 3. d4 {[%emt 0:00:05]} cxd4 {[%emt 0:00:05]} 4. Nxd4 {[%emt 0:00:06]} Nf6 {[%emt 0:00:03]} 5. Nc3 {[%emt 0:00:09]} e5 {[%emt 0:00:04]} 6. Ndb5 {[%emt 0:00:16]} d6 {[%emt 0:00:16]} 7. Nd5 {[%emt 0:00:35]} Nxd5 {[%emt 0:00:06]} 8. exd5 {[%emt 0:00:05]} Ne7 {[%emt 0:00:05]} 9. c4 {[%emt 0:01:04]} Ng6 {[%emt 0:00:17]} 10. Bd3 {[%emt 0:02:32]} Be7 {[%emt 0:00:19]} 11. O-O {[%emt 0:00:45]} O-O {[%emt 0:00:17]} 12. Be3 {[%emt 0:03:46]} a6 {[%emt 0:00:27]} 13. Nc3 {[%emt 0:00:22]} f5 {[%emt 0:00:05]} 14. f3 {[%emt 0:00:44]} Bg5 {[%emt 0:04:30]} 15. Bxg5 {[%emt 0:11:11]} Qxg5 {[%emt 0:00:07]} 16. Qc1 {[%emt 0:00:21]} Nf4 {[%emt 0:06:20]} 17. Qc2 {[%emt 0:04:30]} Rf6 {[%emt 0:05:10]} 18. g3 Bd7 {[%emt 0:24:08]} 19. Kh1 {[%emt 0:06:37]} Nh5 {[%emt 0:08:03]} 20. Qg2 {[%emt 0:29:56]} Rh6 {[%emt 0:02:32]} 21. Rae1 {[%emt 0:02:41]} f4 {[%emt 0:03:52]} 22. g4 {[%emt 0:11:51]} Ng3+ {[%emt 0:00:35]} 23. Kg1 {[%emt 0:00:12]} Nxf1 {[%emt 0:00:25]} 24. Rxf1 {[%emt 0:01:13]} Rh4 {[%emt 0:03:51]} 25. Ne4 {[%emt 0:03:15]} Qd8 {[%emt 0:03:22]} 26. Rf2 {[%emt 0:07:59]} Qb6 {[%emt 0:01:27]} 27. Kf1 {[%emt 0:00:32]} h5 {[%emt 0:04:09]} 28. h3 {[%emt 0:00:11]} hxg4 {[%emt 0:00:27]} 29. hxg4 {[%emt 0:01:30]} Qe3 {[%emt 0:01:20]} 30. Rd2 {[%emt 0:01:36]} Rf8 {[%emt 0:08:23]} 31. Qf2 {[%emt 0:01:30]} Rh3 {[%emt 0:01:47]} 32. Kg2 {[%emt 0:03:19]} Qxf2+ {[%emt 0:05:24]} 33. Rxf2 Bxg4 {[%emt 0:01:40]} 34. Nxd6 {[%emt 0:05:05]} Rg3+ {[%emt 0:01:30]} 35. Kf1 {[%emt 0:01:22]} Bxf3 {[%emt 0:00:31]} 36. Bb1 {[%emt 0:01:34]} b5 {[%emt 0:03:12]} 37. Rh2 {[%emt 0:00:23]} Rf6 {[%emt 0:01:02]} 38. Bh7+ {[%emt 0:00:46]} Kf8 {[%emt 0:00:41]} 39. Nc8 {[%emt 0:00:58]} Bg4 {[%emt 0:01:31]} 40. Nb6 {[%emt 0:00:44]} Rxb6 {[%emt 0:00:30]} 41. c5 {[%emt 0:30:07]} Rh6 {[%emt 0:30:28]} 42. Rxh6 {[%emt 0:00:47]} gxh6 {[%emt 0:00:05]} 43. c6 {[%emt 0:00:22]} Ke7 {[%emt 0:00:15]} 44. c7 {[%emt 0:00:49]} Kd6 {[%emt 0:00:09]} 0-1

[Event "58th Akiba Rubinstein D 2022"]
[Site "Polanica-Zdroj"]
[Date "2022.08.18"]
[Round "6.27"]
[White "Stachowiak, Bruno"]
[Black "Karpinski, Andrzej"]
[Result "1-0"]
[ECO "C42"]
[WhiteElo "1462"]
[BlackElo "1634"]
[Annotator "NA RC"]
[PlyCount "55"]
[EventDate "2022.08.13"]
[EventCountry "POL"]
[SourceTitle "playchess.com"]
[Source "ChessBase"]
[SourceQuality "1"]
[TimeControl "40/5400+30:1800+30"]

1. e4 {[%emt 0:00:07]} Nf6 {[%emt 0:00:38]} 2. Nc3 {[%emt 0:00:46]} e5 {[%emt 0:00:33]} 3. Nf3 {[%emt 0:00:09]} d6 {[%emt 0:04:23]} 4. Bc4 {[%emt 0:01:00]} Be7 {[%emt 0:01:32]} 5. h3 {[%emt 0:01:37]} O-O {[%emt 0:00:39]} 6. d3 {[%emt 0:02:32]} c6 {[%emt 0:02:55]} 7. Bb3 {[%emt 0:00:16]} Nbd7 {[%emt 0:00:42]} 8. Be3 {[%emt 0:00:15]} Qa5 {[%emt 0:01:23]} 9. Qd2 {[%emt 0:02:24]} b5 {[%emt 0:06:06]} 10. a3 {[%emt 0:01:55]} Qc7 {[%emt 0:00:40]} 11. d4 {[%emt 0:04:10]} a6 {[%emt 0:00:59]} 12. g4 {[%emt 0:02:05]} c5 {[%emt 0:10:59]} 13. dxe5 {[%emt 0:01:35]} Nxe5 {[%emt 0:06:11]} 14. Nxe5 {[%emt 0:00:05]} dxe5 {[%emt 0:00:10]} 15. g5 {[%emt 0:00:33]} Nh5 {[%emt 0:01:21]} 16. Nd5 {[%emt 0:00:14]} Qd6 17. O-O-O {[%emt 0:08:11]} Kh8 {[%emt 0:16:33]} 18. Qe2 g6 {[%emt 0:01:24]} 19. Nf6 {[%emt 0:04:41]} Qc7 {[%emt 0:01:58]} 20. Nxh5 {[%emt 0:00:04]} c4 21. Ba2 {[%emt 0:04:45]} gxh5 {[%emt 0:02:01]} 22. f4 {[%emt 0:04:48]} f6 {[%emt 0:07:33]} 23. Qxh5 {[%emt 0:02:17]} Bb7 {[%emt 0:03:23]} 24. g6 {[%emt 0:00:16]} Bd8 {[%emt 0:01:01]} 25. fxe5 {[%emt 0:00:26]} Bxe4 {[%emt 0:05:21]} 26. Rhg1 {[%emt 0:01:01]} Bb7 27. Rh1 Be4 28. Rhg1 1-0

[Event "58th Akiba Rubinstein D 2022"]
[Site "Polanica-Zdroj"]
[Date "2022.08.18"]
[Round "6.28"]
[White "Garwacki, Kornel"]
[Black "Klama, Andrzej"]
[Result "1/2-1/2"]
[ECO "A00"]
[WhiteElo "1571"]
[BlackElo "1441"]
[Annotator "NA RC"]
[PlyCount "66"]
[EventDate "2022.08.13"]
[EventCountry "POL"]
[SourceTitle "playchess.com"]
[Source "ChessBase"]
[SourceQuality "1"]
[TimeControl "40/5400+30:1800+30"]

1. Nc3 {[%emt 0:00:02]} e6 2. g3 {[%emt 0:00:49]} Nf6 {[%emt 0:01:07]} 3. Bg2 {[%emt 0:00:24]} d5 {[%emt 0:00:18]} 4. e4 {[%emt 0:00:37]} dxe4 {[%emt 0:01:09]} 5. Nxe4 {[%emt 0:00:15]} Nxe4 {[%emt 0:01:02]} 6. Bxe4 {[%emt 0:00:02]} Be7 {[%emt 0:00:40]} 7. d4 {[%emt 0:00:27]} O-O {[%emt 0:00:30]} 8. Be3 {[%emt 0:01:52]} c6 {[%emt 0:01:31]} 9. c3 {[%emt 0:02:32]} Nd7 {[%emt 0:00:38]} 10. h4 {[%emt 0:01:37]} f5 {[%emt 0:01:12]} 11. Bc2 {[%emt 0:01:24]} Nf6 {[%emt 0:01:39]} 12. Nh3 {[%emt 0:03:37]} Ng4 {[%emt 0:01:58]} 13. Bf4 {[%emt 0:01:44]} h6 {[%emt 0:03:04]} 14. f3 {[%emt 0:02:59]} Nf6 {[%emt 0:00:52]} 15. Qe2 {[%emt 0:04:18]} Bd6 {[%emt 0:00:33]} 16. Rg1 {[%emt 0:05:58]} Nh5 {[%emt 0:01:52]} 17. Be5 {[%emt 0:18:42]} Bxe5 {[%emt 0:03:26]} 18. dxe5 {[%emt 0:01:15]} g6 {[%emt 0:00:30]} 19. Bb3 {[%emt 0:07:45]} Kh7 {[%emt 0:00:42]} 20. Rd1 {[%emt 0:02:13]} Qe7 {[%emt 0:00:30]} 21. Rd6 {[%emt 0:02:00]} Rd8 {[%emt 0:00:17]} 22. Qd2 {[%emt 0:01:19]} Rxd6 {[%emt 0:00:37]} 23. exd6 {[%emt 0:00:15]} Qf7 24. g4 {[%emt 0:01:34]} fxg4 {[%emt 0:03:37]} 25. fxg4 {[%emt 0:00:13]} Ng7 26. Qe3 {[%emt 0:05:41]} Bd7 {[%emt 0:05:06]} 27. Rf1 {[%emt 0:00:24]} Qg8 {[%emt 0:00:25]} 28. Qf4 {[%emt 0:03:28]} b5 {[%emt 0:03:06]} 29. h5 {[%emt 0:03:50]} g5 {[%emt 0:01:03]} 30. Qf6 {[%emt 0:01:10]} Qd8 {[%emt 0:04:23]} 31. Qg6+ {[%emt 0:01:32]} Kg8 {[%emt 0:04:18]} 32. Qf6 Kh7 33. Qg6+ Kg8 1/2-1/2

[Event "58th Akiba Rubinstein D 2022"]
[Site "Polanica-Zdroj"]
[Date "2022.08.18"]
[Round "6.29"]
[White "Perek, Oskar"]
[Black "Gorecka, Zuzanna"]
[Result "1-0"]
[ECO "D79"]
[WhiteElo "1555"]
[BlackElo "1287"]
[Annotator "NA RC"]
[PlyCount "82"]
[EventDate "2022.08.13"]
[EventCountry "POL"]
[SourceTitle "playchess.com"]
[Source "ChessBase"]
[SourceQuality "1"]
[TimeControl "40/5400+30:1800+30"]

1. Nf3 {[%emt 0:00:01]} d5 {[%emt 0:00:06]} 2. g3 {[%emt 0:00:15]} g6 {[%emt 0:00:11]} 3. Bg2 {[%emt 0:00:21]} Bg7 {[%emt 0:00:09]} 4. O-O {[%emt 0:00:46]} c5 {[%emt 0:00:07]} 5. c3 {[%emt 0:01:14]} Nf6 {[%emt 0:00:11]} 6. d4 {[%emt 0:00:12]} cxd4 {[%emt 0:02:56]} 7. cxd4 {[%emt 0:00:08]} O-O {[%emt 0:00:07]} 8. Nc3 {[%emt 0:00:04]} Nc6 {[%emt 0:00:25]} 9. a3 {[%emt 0:01:09]} a5 {[%emt 0:01:47]} 10. Re1 {[%emt 0:01:30]} Bf5 {[%emt 0:01:13]} 11. Nh4 {[%emt 0:02:08]} Be6 {[%emt 0:03:40]} 12. e3 {[%emt 0:01:57]} Rc8 {[%emt 0:08:14]} 13. Qb3 {[%emt 0:02:01]} Rb8 {[%emt 0:04:30]} 14. Bd2 {[%emt 0:03:51]} Qd7 {[%emt 0:07:47]} 15. Nf3 {[%emt 0:02:03]} Rfd8 {[%emt 0:02:36]} 16. Rac1 {[%emt 0:02:00]} Bf5 {[%emt 0:00:40]} 17. Ne5 Nxe5 {[%emt 0:05:34]} 18. dxe5 {[%emt 0:05:36]} Ne4 {[%emt 0:02:10]} 19. Nxe4 {[%emt 0:00:23]} dxe4 {[%emt 0:00:24]} 20. Bxa5 {[%emt 0:00:31]} b6 {[%emt 0:01:50]} 21. Bc3 {[%emt 0:00:20]} Qb7 {[%emt 0:07:27]} 22. Red1 {[%emt 0:03:27]} Bg4 23. Rxd8+ {[%emt 0:04:36]} Rxd8 {[%emt 0:04:49]} 24. Bd4 {[%emt 0:01:50]} Rc8 {[%emt 0:03:13]} 25. Rxc8+ {[%emt 0:02:52]} Qxc8 {[%emt 0:00:28]} 26. Qc3 {[%emt 0:00:08]} Qb7 {[%emt 0:01:48]} 27. b4 {[%emt 0:02:29]} Qd5 {[%emt 0:13:21]} 28. h3 {[%emt 0:05:06]} Bd7 {[%emt 0:00:34]} 29. e6 {[%emt 0:06:07]} Bxe6 {[%emt 0:01:07]} 30. Bxg7 {[%emt 0:02:13]} Qd1+ {[%emt 0:00:51]} 31. Kh2 {[%emt 0:00:10]} f6 {[%emt 0:05:37]} 32. Bxf6 {[%emt 0:00:14]} exf6 {[%emt 0:00:07]} 33. Qxf6 {[%emt 0:00:12]} Qd5 {[%emt 0:00:15]} 34. Qf4 {[%emt 0:01:19]} g5 {[%emt 0:04:00]} 35. Qxe4 {[%emt 0:01:08]} Qd7 {[%emt 0:00:41]} 36. Qa8+ {[%emt 0:00:23]} Kg7 {[%emt 0:00:30]} 37. Qb7 {[%emt 0:00:06]} Qxb7 {[%emt 0:00:17]} 38. Bxb7 {[%emt 0:00:07]} Bd7 {[%emt 0:00:23]} 39. f4 {[%emt 0:00:18]} g4 {[%emt 0:00:38]} 40. hxg4 {[%emt 0:00:17]} Bxg4 {[%emt 0:00:08]} 41. e4 {[%emt 0:30:31]} Bd7 1-0

[Event "58th Akiba Rubinstein D 2022"]
[Site "Polanica-Zdroj"]
[Date "2022.08.18"]
[Round "6.30"]
[White "Balcerzak, Robert"]
[Black "Latacz, Grzegorz"]
[Result "1/2-1/2"]
[ECO "B34"]
[WhiteElo "1357"]
[BlackElo "1449"]
[Annotator "NA RC"]
[PlyCount "44"]
[EventDate "2022.08.13"]
[EventCountry "POL"]
[SourceTitle "playchess.com"]
[Source "ChessBase"]
[SourceQuality "1"]
[TimeControl "40/5400+30:1800+30"]

1. e4 {[%emt 0:00:16]} c5 {[%emt 0:00:03]} 2. Nf3 {[%emt 0:00:36]} Nc6 {[%emt 0:00:03]} 3. d4 {[%emt 0:00:48]} cxd4 {[%emt 0:00:22]} 4. Nxd4 {[%emt 0:00:28]} g6 {[%emt 0:00:13]} 5. Nc3 {[%emt 0:00:42]} Bg7 {[%emt 0:00:05]} 6. Nb3 {[%emt 0:00:35]} Nf6 {[%emt 0:02:26]} 7. Be2 {[%emt 0:02:06]} d6 {[%emt 0:01:25]} 8. O-O {[%emt 0:01:07]} O-O {[%emt 0:00:22]} 9. Bg5 {[%emt 0:00:42]} Bd7 {[%emt 0:03:04]} 10. Kh1 {[%emt 0:01:12]} Rc8 {[%emt 0:03:29]} 11. f4 {[%emt 0:01:18]} a6 {[%emt 0:13:53]} 12. a4 {[%emt 0:00:40]} Be6 {[%emt 0:00:30]} 13. f5 {[%emt 0:12:35]} Bxb3 {[%emt 0:04:28]} 14. cxb3 {[%emt 0:01:30]} Ne5 {[%emt 0:17:43]} 15. g4 {[%emt 0:09:57]} Qa5 {[%emt 0:02:52]} 16. Bd2 {[%emt 0:08:20]} Qd8 {[%emt 0:06:12]} 17. g5 {[%emt 0:05:19]} Nfd7 {[%emt 0:00:40]} 18. Be3 Nc5 {[%emt 0:03:52]} 19. b4 {[%emt 0:24:21]} Ncd7 {[%emt 0:00:48]} 20. Qb3 {[%emt 0:04:13]} Kh8 {[%emt 0:04:56]} 21. Qd1 Kg8 22. Qb3 Kh8 1/2-1/2

[Event "58th Akiba Rubinstein D 2022"]
[Site "Polanica-Zdroj"]
[Date "2022.08.19"]
[Round "7.1"]
[White "Jasiulewicz, Dawid"]
[Black "Meizlin, Yaacov"]
[Result "1-0"]
[ECO "D02"]
[WhiteElo "1525"]
[BlackElo "1938"]
[Annotator "TA"]
[PlyCount "117"]
[EventDate "2022.08.13"]
[EventCountry "POL"]
[SourceTitle "playchess.com"]
[Source "ChessBase"]
[SourceQuality "1"]
[TimeControl "40/5400+30:1800+30"]

{[%evp 15,117,-28,0,-20,18,-16,-13,-51,-54,-67,-41,-62,-37,-37,0,-36,0,-40,-8,-6,0,-52,-31,-50,-39,-45,19,-37,11,12,34,27,30,31,50,45,75,46,117,18,109,65,112,35,70,33,78,79,108,112,123,116,112,117,241,233,231,228,236,181,261,247,510,497,467,480,421,364,434,418,1131,1106,847,261,841,813,840,691,1199,1058,823,446,1818,1354,1052,1093,29980,29981,29981,29982,29982,29983,29983,29984,29984,29984,29984,29985,29983,29984,29986,29987,29988,29988]} 1. d4 {[%emt 0:00:03]} d5 {[%emt 0:00:33]} 2. Nf3 {[%emt 0:00:12]} e6 {[%emt 0:01:55]} 3. c4 {[%emt 0:00:15]} Nf6 {[%emt 0:01:27]} 4. e3 {[%emt 0:00:23]} Be7 {[%emt 0:00:40]} 5. Nc3 {[%emt 0:00:09]} O-O {[%emt 0:00:07]} 6. Bd3 {[%emt 0:00:04]} dxc4 {[%emt 0:00:20]} 7. Bxc4 {[%emt 0:00:07]} a6 {[%emt 0:00:16]} 8. O-O {[%emt 0:00:13] 8.a4 is more fashionable.} c5 {[%emt 0:00:11]} (8... b5 $5 {[%cal Rb5c4]} 9. Bd3 Bb7 $11) 9. Bb3 {[%emt 0:08:28] D37: Queen's Gambit Declined: 5 Bf4.} Nbd7 {[%emt 0:09:24]} 10. Qe2 {[%emt 0:03:42]} (10. e4 $5 {[%cal Re4e5]}) 10... b5 {[%emt 0:04:11][%cal Bb7b5,Bb5b4][%mdl 32] [#]} 11. a4 $146 {[%emt 0:00:44] The position is equal.} ({Predecessor:} 11. Rd1 Qb6 12. Bc2 Bb7 13. e4 cxd4 14. Nxd4 Bc5 15. Nb3 Bb4 16. e5 Nd5 17. Nxd5 Bxd5 18. Rxd5 exd5 {1-0 (27) Atakanov,A-Ajigulov,N Bishkek 2013}) 11... b4 {[%emt 0:00:12]} 12. Nb1 {[%emt 0:01:50]} Bb7 {[%emt 0:00:42]} 13. Nbd2 {[%emt 0:01:46]} cxd4 {[%emt 0:04:54]} 14. exd4 {[%emt 0:00:31]} Nb6 {[%emt 0:00:16]} 15. Rd1 {[%emt 0:03:13]} (15. a5 $5 {[%cal Ra5b6]} Nbd7 16. Nc4 $11) 15... Bd5 {[%emt 0:01:20]} 16. Ne5 {[%emt 0:05:56]} Bxb3 {[%emt 0:10:33]} 17. Nxb3 {[%emt 0:00:04]} Qd5 {[%emt 0:00:11]} 18. Qd3 {[%emt 0:05:41]} (18. a5 $11 Nbd7 19. Bg5) 18... Rac8 {[%emt 0:09:36]} 19. Bg5 {[%emt 0:06:30]} Nc4 {[%emt 0:03:38]} 20. Nxc4 {[%emt 0:01:58]} Qxc4 {[%emt 0:02:33]} (20... Rxc4 $15 21. a5 Rfc8) 21. Qf3 {[%emt 0:01:23]} (21. Qxc4 $11 Rxc4 22. Rac1) 21... Qd5 {[%emt 0:05:32]} (21... Qc2 $15 {feels stronger.}) 22. Qxd5 $11 {[%emt 0:00:47]} Nxd5 {[%emt 0:03:53]} 23. Bxe7 {[%emt 0:00:48]} Nxe7 {[%emt 0:00:01]} 24. Rac1 {[%emt 0:06:25] Inhibits Rc2.} g6 {[%emt 0:00:39]} 25. Kf1 {[%emt 0:02:13]} Rfd8 {[%emt 0:00:11]} 26. Ke2 {[%emt 0:01:25]} Nd5 {[%emt 0:02:45]} ({Better is} 26... Ra8 $14) 27. g3 {[%emt 0:04:31]} (27. Rxc8 $16 Rxc8 28. Rc1 Rxc1 29. Nxc1) 27... Kf8 {[%emt 0:03:45]} (27... Nb6 $1 $11) 28. Kd3 {[%emt 0:04:22]} Ke7 {[%emt 0:00:40]} (28... Ra8 $14) 29. Nc5 {[%emt 0:09:10]} (29. Rxc8 $16 Rxc8 30. a5) 29... Rc6 {[%emt 0:03:32]} 30. Kc4 {[%emt 0:03:50]} (30. Nb7 $5 {[%cal Rc1c6]} Rdc8 31. Rxc6 Rxc6 32. Nc5 $11) 30... g5 {[%emt 0:03:46]} 31. Kb3 {[%emt 0:02:47]} Rdc8 {[%emt 0:03:21]} 32. a5 h5 {[%emt 0:00:33]} 33. Nd3 {[%emt 0:06:05]} Kd6 {[%emt 0:02:00]} 34. Rc5 {[%emt 0:02:49]} f6 {[%emt 0:00:53] This move loses the game for Black.} (34... Rxc5 $16 35. dxc5+ (35. Nxc5 Ke7 $14) 35... Ke7) 35. Rdc1 $18 {[%emt 0:01:19] aiming for Rxc6+.} (35. Nxb4 Rxc5 36. dxc5+ Rxc5 $15) 35... Rxc5 {[%emt 0:02:57]} 36. Nxc5 {[%emt 0:03:31][%mdl 4096] Endgame Hoping for Nb7+. KRN-KRN} (36. dxc5+ Kc6 $14) 36... Ke7 {[%emt 0:03:18]} 37. Rc4 {[%emt 0:00:53]} Rc6 {[%emt 0:00:09]} (37... Ra8 {was necessary.} 38. Rc2 Nc7) 38. Nd3 {[%emt 0:02:08]} Kd6 {[%emt 0:03:54] [#]} (38... Rd6 39. Rc8 (39. Nxb4 Nxb4 40. Rxb4 Rd5 $16) 39... Kd7) 39. Nxb4 {[%emt 0:00:40]} Rxc4 {[%emt 0:00:23]} 40. Kxc4 {[%emt 0:00:06] KN-KN} Nc7 {[%emt 0:00:16]} 41. Na2 {[%emt 0:31:41]} f5 {[%emt 0:30:54]} 42. Nb4 {[%emt 0:02:58]} e5 {[%emt 0:02:45]} (42... h4 $142 43. gxh4 gxh4) 43. dxe5+ {[%emt 0:00:58]} Kxe5 {[%emt 0:00:02]} 44. f3 $2 {[%emt 0:00:26] [#]} (44. Kc5 Ne8 45. Nxa6) 44... h4 $2 {[%emt 0:00:46]} (44... Kd6 45. f4 gxf4) 45. Kc5 {[%emt 0:03:11]} h3 {[%emt 0:02:12]} 46. Kb6 {[%emt 0:01:57][%csl LRa6,LRc7]} f4 {[%emt 0:00:21]} 47. Nc6+ {[%emt 0:03:19]} Kd6 {[%emt 0:00:49]} 48. Nd4 {[%emt 0:01:44]} Ke5 {[%emt 0:00:20]} (48... Nd5+ $142 49. Kxa6 fxg3 50. Nf5+ Kc6 51. Nxg3 Nb4+ 52. Ka7 Kb5) 49. Ne2 {[%emt 0:00:34]} fxg3 {[%emt 0:00:20]} 50. Nxg3 {[%emt 0:00:01]} Kf4 {[%emt 0:00:16]} 51. Kxc7 {[%emt 0:01:24] White mates.} Kxf3 {[%emt 0:00:09] KN-K3P} 52. b4 {[%emt 0:00:24]} Kg2 {[%emt 0:00:10]} 53. b5 {[%emt 0:00:26]} axb5 {[%emt 0:00:20]} 54. a6 {[%emt 0:00:40]} Kxh2 {[%emt 0:00:08]} 55. Nf1+ {[%emt 0:00:37]} Kg1 {[%emt 0:00:14]} 56. a7 {[%emt 0:00:33]} Kxf1 {[%emt 0:01:19]} 57. a8=Q {[%emt 0:00:01]} g4 {[%emt 0:00:13]} 58. Qe4 {[%emt 0:01:00]} Kf2 {[%emt 0:00:31]} 59. Qf4+ {[%emt 0:00:13] Weighted Error Value: White=0.40/Black=0.48} 1-0

[Event "58th Akiba Rubinstein D 2022"]
[Site "Polanica-Zdroj"]
[Date "2022.08.19"]
[Round "7.2"]
[White "Lewandrowski, Tomasz"]
[Black "Kraczek, Cezary"]
[Result "1/2-1/2"]
[ECO "A45"]
[WhiteElo "1902"]
[BlackElo "1657"]
[Annotator "TA"]
[PlyCount "112"]
[EventDate "2022.08.13"]
[EventCountry "POL"]
[SourceTitle "playchess.com"]
[Source "ChessBase"]
[SourceQuality "1"]
[TimeControl "40/5400+30:1800+30"]

{[%evp 9,112,0,0,0,16,17,26,27,37,26,37,-13,55,42,90,83,122,66,95,102,149,0,241,244,235,231,228,218,210,172,186,191,176,70,66,68,72,68,64,65,71,39,47,39,39,41,47,23,24,14,24,24,25,27,25,13,13,0,13,13,13,8,14,0,15,13,38,37,58,58,66,66,66,9,22,0,48,8,8,8,8,0,0,0,0,0,0,0,0,0,35,0,22,0,0,0,0,0,0,0,0,0,0,0,0]} 1. d4 {[%emt 0:00:01]} Nf6 {[%emt 0:00:23]} 2. Nc3 {[%emt 0:00:12]} d5 {[%emt 0:00:04]} 3. Bf4 {[%emt 0:00:08]} g6 {[%emt 0:00:29]} 4. e3 {[%emt 0:00:21]} Bg7 {[%emt 0:01:06]} 5. h4 {[%emt 0:00:08]} h5 {[%emt 0:01:50]} 6. Qd2 {[%emt 0:02:35] D00: 1 d4 d5: Unusual lines.} a6 {[%emt 0:05:45]} 7. Nf3 {[%emt 0:01:43]} Nbd7 {[%emt 0:04:15]} 8. Ne5 {[%emt 0:02:43] [#] White has an edge.} c5 $146 {[%emt 0:03:34]} ({Predecessor:} 8... Ne4 9. Nxe4 dxe4 10. Nxd7 Bxd7 11. O-O-O Bg4 12. Be2 Bxe2 13. Qxe2 Qd5 14. Kb1 O-O-O {½-½ (23) Lund,G (2228)-Petersson,B (2148) Stockholm 2018}) 9. Nxd7 {[%emt 0:02:04]} Bxd7 {[%emt 0:00:53]} 10. Be5 {[%emt 0:01:39]} (10. dxc5 $14 O-O 11. O-O-O) 10... cxd4 {[%emt 0:06:20]} (10... Bc6 $11) 11. Qxd4 $14 {[%emt 0:02:22]} Bc6 {[%emt 0:01:43]} (11... O-O $14) 12. O-O-O $16 {[%emt 0:03:13]} Rc8 {[%emt 0:08:25]} 13. Be2 {[%emt 0:05:06]} (13. f3 $16) 13... Qd7 {[%emt 0:12:56] Against g4} 14. Kb1 {[%emt 0:01:30]} O-O {[%emt 0:03:19]} (14... b5 $142) 15. Rdg1 {[%emt 0:09:57]} ({White should try} 15. g4 $16) 15... Bb5 $2 {[%emt 0:09:40]} (15... Ne8 $1 $11) 16. Nxb5 $18 {[%emt 0:13:14]} axb5 {[%emt 0:00:31] [#]} 17. g4 $1 {[%emt 0:00:13]} Qc6 {[%emt 0:03:24]} 18. c3 {[%emt 0:02:53] Active counter play!} hxg4 {[%emt 0:02:27]} 19. Bxg4 {[%emt 0:03:26]} Ra8 {[%emt 0:03:37] [#] aiming for ...Ra4.} 20. Bd1 {[%emt 0:04:27] Prevents Ra4. This bishop pair is nice.} Qc4 {[%emt 0:04:23]} 21. Qxc4 {[%emt 0:00:27]} ({Better is} 21. Bb3 $18 Qxd4 22. Bxd4 (22. exd4 Nd7 $18) (22. cxd4 e6 $16)) 21... bxc4 $14 {[%emt 0:00:12]} 22. Bxf6 {[%emt 0:00:08]} Bxf6 {[%emt 0:02:27]} 23. h5 {[%emt 0:00:07]} Kg7 {[%emt 0:01:07]} 24. hxg6 {[%emt 0:00:59] Strongly threatening Rh7+.} fxg6 {[%emt 0:00:13]} 25. Bc2 {[%emt 0:00:15]} Rh8 $1 {[%emt 0:02:46]} 26. Rxh8 {[%emt 0:02:09]} Rxh8 {[%emt 0:01:07]} 27. Bxg6 {[%emt 0:00:09][%mdl 4096] Endgame Hoping for Be4+. KRB-KRB} e6 {[%emt 0:01:12]} 28. f4 {[%emt 0:06:32]} (28. e4 $5 {[%cal Re4d5]}) 28... Kf8 {[%emt 0:05:47]} 29. e4 {[%emt 0:03:09]} Ke7 {[%emt 0:01:52]} 30. exd5 {[%emt 0:01:46]} exd5 {[%emt 0:00:02]} 31. Re1+ {[%emt 0:00:10]} Kd6 {[%emt 0:00:59]} 32. Bf7 {[%emt 0:00:48] Re6+ is the strong threat.} Kc5 {[%emt 0:01:44]} 33. a3 {[%emt 0:04:13]} Rd8 {[%emt 0:01:11]} 34. Re6 {[%emt 0:00:52]} Rd6 {[%emt 0:00:22]} 35. Re8 {[%emt 0:02:10]} Rd8 {[%emt 0:00:18]} 36. Re2 {[%emt 0:00:19]} Rd6 {[%emt 0:01:27]} 37. f5 {[%emt 0:00:19]} d4 {[%emt 0:02:14]} 38. cxd4+ {[%emt 0:00:24]} Bxd4 {[%emt 0:00:37]} 39. Rc2 {[%emt 0:02:03]} b5 {[%emt 0:01:06]} 40. b4+ {[%emt 0:00:18]} Kb6 {[%emt 0:00:49]} 41. Rg2 {[%emt 0:30:42]} ({White should play} 41. Be8 $14) 41... Bf6 {[%emt 0:32:39]} 42. Kc2 {[%emt 0:03:45]} c3 {[%emt 0:01:15]} (42... Kc7 $11) 43. Bh5 {[%emt 0:08:55]} Rd2+ {[%emt 0:01:13]} 44. Rxd2 {[%emt 0:00:01]} cxd2 $11 {[%emt 0:00:09] KB-KB} 45. Kb3 {[%emt 0:00:11]} Ka6 {[%emt 0:01:39]} 46. Be2 {[%emt 0:02:21]} Kb6 {[%emt 0:00:09]} 47. Bf3 {[%emt 0:02:28]} Ka6 {[%emt 0:01:12]} 48. Kc2 {[%emt 0:01:39]} Kb6 {[%emt 0:00:24]} 49. Be2 {[%emt 0:02:09]} ({Don't take} 49. Kxd2 Bb2 $14) 49... Be5 {[%emt 0:01:05]} 50. Kb3 {[%emt 0:00:35]} Bf6 {[%emt 0:00:20] The position is equal.} 51. a4 {[%emt 0:00:21]} bxa4+ {[%emt 0:00:05]} 52. Kxa4 {[%emt 0:00:02]} Bg5 {[%emt 0:00:33]} 53. Kb3 {[%emt 0:00:17]} Bf6 {[%emt 0:01:21]} 54. Kc2 {[%emt 0:00:13]} Be7 {[%emt 0:00:26]} 55. Kb3 {[%emt 0:00:01]} Bg5 {[%emt 0:00:08]} 56. Kc4 {[%emt 0:02:48]} Be7 {[%emt 0:00:24] White really could win this.  Weighted Error Value: White=0.14 (very precise) /Black=0.18 (very precise)} 1/2-1/2